Workbook

Sheet MyVallox 245 VKL
B1: v0_4
A2: FIN | E2: MyVallox 245 VKL
A3: MT | E3: Patterin mitoitus
D6: Kohde:
D7: Osoite:
B9: Laske Tyhjennä
B11: Ulkoilman lämpötila | D11: °C
B12: Ilmavirta | D12: l/s | F12: 33.464875
B13: Poistoilman lämpötila | D13: °C
B14: Tuloilman asetuslämpötila | D14: °C | F14: Mitoitus meno- ja paluuveden lämpötilan mukaan
F15: Mitoitus menoveden lämpötilan ja patterin tilavuusvirran mukaan
B16: Patterin menoveden lämpötila | D16: °C
B17: Patterin paluuveden lämpötila | D17: °C
B19: Tuloilman lämpötila ennen jälkilämmitystä | D19: °C
B20: Jäteilman lämpötila | D20: °C
B22: Ilman lämpötilan muutos | D22: °C
B23: Ilman energiasisältö | D23: kJ/kg°C
B24: Ilman tiheys | D24: kg/m3
B25: Ilman massavirta | D25: m3/s
B26: Jälkilämmityspatterin tehontarve | D26: kW
B29: Veden energiasisältö | D29: kJ/kg°C
B30: Veden tiheys | D30: kg/dm3
B31: Patterin massavirta | D31: kg/s
B32: Patterin painehäviö (vesi) | D32: kPa
B33: Veden virtausnopeus | D33: m/s

Sheet Data (hidden)
A2: Ilmavirta | B2: Ilman tulolämpötila | C2: Ilman lähtölämpötila | D2: Menonesteen lämpötila | E2: Paluunesteen lämpötila | F2: Nesteen massavirta | G2: Patterin painehäviö | H2: Patterin teho
A3: Vilma | B3: T1 | C3: T2 | D3: T3 | E3: T4 | F3: Mneste | G3: dpneste | H3: Teho
A4: m³/s | B4: C | C4: C | D4: C | E4: C | F4: kg/s | G4: kPa | H4: kW
A5: 0.2 | B5: -30 | C5: -7.0022 | D5: 70 | E5: -25.403 | F5: 0.0153746 | G5: 0.4298618636 | H5: 6.2683
A6: 0.2 | B6: -30 | C6: 7.6729 | D6: 70 | E6: -6.1345 | F6: 0.03 | G6: 1.63668 | H6: 9.6695
A7: 0.2 | B7: -30 | C7: 15.375 | D7: 70 | E7: 10.56 | F7: 0.045 | G7: 3.68253 | H7: 11.26
A8: 0.2 | B8: -30 | C8: 19.705 | D8: 70 | E8: 21.937 | F8: 0.06 | G8: 6.54672 | H8: 12.107
A9: 0.2 | B9: -30 | C9: 22.425 | D9: 70 | E9: 29.85 | F9: 0.075 | G9: 10.22925 | H9: 12.631
A10: 0.2 | B10: -30 | C10: 24.278 | D10: 70 | E10: 35.595 | F10: 0.09 | G10: 14.73012 | H10: 12.985
A11: 0.2 | B11: -30 | C11: 25.617 | D11: 70 | E11: 39.932 | F11: 0.105 | G11: 20.04933 | H11: 13.238
A12: 0.2 | B12: -30 | C12: 26.627 | D12: 70 | E12: 43.312 | F12: 0.12 | G12: 26.18688 | H12: 13.429
A13: 0.2 | B13: -30 | C13: 27.416 | D13: 70 | E13: 46.017 | F13: 0.135 | G13: 33.14277 | H13: 13.578
A14: 0.2 | B14: -30 | C14: 28.049 | D14: 70 | E14: 48.228 | F14: 0.15 | G14: 40.917 | H14: 13.603
A15: 0.2 | B15: -25 | C15: -2.9633 | D15: 70 | E15: -20.668175 | F15: 0.015291625 | G15: 0.4252721119 | H15: 5.90595
A16: 0.2 | B16: -25 | C16: 11.127175 | D16: 70 | E16: -2.256825 | F16: 0.03 | G16: 1.63668 | H16: 9.168875
A17: 0.2 | B17: -25 | C17: 18.4375 | D17: 70 | E17: 13.6045 | F17: 0.045 | G17: 3.68253 | H17: 10.6814
A18: 0.2 | B18: -25 | C18: 22.5385 | D18: 70 | E18: 24.405 | F18: 0.06 | G18: 6.54672 | H18: 11.4861
A19: 0.2 | B19: -25 | C19: 25.112 | D19: 70 | E19: 31.914 | F19: 0.075 | G19: 10.22925 | H19: 11.9825
A20: 0.2 | B20: -25 | C20: 26.864 | D20: 70 | E20: 37.3645 | F20: 0.09 | G20: 14.73012 | H20: 12.31775
A21: 0.2 | B21: -25 | C21: 28.1295 | D21: 70 | E21: 41.479 | F21: 0.105 | G21: 20.04933 | H21: 12.5575
A22: 0.2 | B22: -25 | C22: 29.084 | D22: 70 | E22: 44.68525 | F22: 0.12 | G22: 26.18688 | H22: 12.7385
A23: 0.2 | B23: -25 | C23: 29.82925 | D23: 70 | E23: 47.25125 | F23: 0.135 | G23: 33.14277 | H23: 12.8795
A24: 0.2 | B24: -25 | C24: 30.42725 | D24: 70 | E24: 49.3485 | F24: 0.15 | G24: 40.917 | H24: 12.9035
A25: =(A5+A109)/2 -> 0.2 | B25: -20 | C25: 1.0756 | D25: 70 | E25: -15.93335 | F25: 0.01520865 | G25: 0.4206823602 | H25: 5.5436
A26: =(A6+A113)/2 -> 0.2 | B26: -20 | C26: 14.58145 | D26: 70 | E26: 1.62085 | F26: 0.03 | G26: 1.63668 | H26: 8.66825
A27: =(A7+A117)/2 -> 0.2 | B27: -20 | C27: 21.5 | D27: 70 | E27: 16.649 | F27: 0.045 | G27: 3.68253 | H27: 10.1028
A28: =(A8+A121)/2 -> 0.2 | B28: -20 | C28: 25.372 | D28: 70 | E28: 26.873 | F28: 0.06 | G28: 6.54672 | H28: 10.8652
A29: =(A9+A125)/2 -> 0.2 | B29: -20 | C29: 27.799 | D29: 70 | E29: 33.978 | F29: 0.075 | G29: 10.22925 | H29: 11.334
A30: =(A10+A129)/2 -> 0.2 | B30: -20 | C30: 29.45 | D30: 70 | E30: 39.134 | F30: 0.09 | G30: 14.73012 | H30: 11.6505
A31: =(A11+A133)/2 -> 0.2 | B31: -20 | C31: 30.642 | D31: 70 | E31: 43.026 | F31: 0.105 | G31: 20.04933 | H31: 11.877
A32: =(A12+A137)/2 -> 0.2 | B32: -20 | C32: 31.541 | D32: 70 | E32: 46.0585 | F32: 0.12 | G32: 26.18688 | H32: 12.048
A33: =(A13+A141)/2 -> 0.2 | B33: -20 | C33: 32.2425 | D33: 70 | E33: 48.4855 | F33: 0.135 | G33: 33.14277 | H33: 12.181
A34: =(A14+A145)/2 -> 0.2 | B34: -20 | C34: 32.8055 | D34: 70 | E34: 50.469 | F34: 0.15 | G34: 40.917 | H34: 12.204
A35: =(A25+A109)/2 -> 0.2 | B35: -15 | C35: 5.1145 | D35: 70 | E35: -11.198525 | F35: 0.015125675 | G35: 0.4160926086 | H35: 5.18125
A36: 0.2 | B36: -15 | C36: 8.34480625 | D36: 70 | E36: -7.0242625 | F36: 0.01884425625 | G36: 0.7212394564 | H36: 5.92784375
A37: 0.2 | B37: -15 | C37: 11.5751125 | D37: 70 | E37: -2.85 | F37: 0.0225628375 | G37: 1.026386304 | H37: 6.6744375
A38: 0.2 | B38: -15 | C38: 14.80541875 | D38: 70 | E38: 1.3242625 | F38: 0.02628141875 | G38: 1.331533152 | H38: 7.42103125
A39: =(A26+A113)/2 -> 0.2 | B39: -15 | C39: 18.035725 | D39: 70 | E39: 5.498525 | F39: 0.03 | G39: 1.63668 | H39: 8.167625
A40: 0.2 | B40: -15 | C40: 19.66741875 | D40: 70 | E40: 9.04726875 | F40: 0.03375 | G40: 2.1481425 | H40: 8.50676875
A41: 0.2 | B41: -15 | C41: 21.2991125 | D41: 70 | E41: 12.5960125 | F41: 0.0375 | G41: 2.659605 | H41: 8.8459125
A42: 0.2 | B42: -15 | C42: 22.93080625 | D42: 70 | E42: 16.14475625 | F42: 0.04125 | G42: 3.1710675 | H42: 9.18505625
A43: =(A27+A117)/2 -> 0.2 | B43: -15 | C43: 24.5625 | D43: 70 | E43: 19.6935 | F43: 0.045 | G43: 3.68253 | H43: 9.5242
A44: 0.2 | B44: -15 | C44: 25.47325 | D44: 70 | E44: 22.105375 | F44: 0.04875 | G44: 4.3985775 | H44: 9.704225
A45: 0.2 | B45: -15 | C45: 26.384 | D45: 70 | E45: 24.51725 | F45: 0.0525 | G45: 5.114625 | H45: 9.88425
A46: 0.2 | B46: -15 | C46: 27.29475 | D46: 70 | E46: 26.929125 | F46: 0.05625 | G46: 5.8306725 | H46: 10.064275
A47: =(A28+A121)/2 -> 0.2 | B47: -15 | C47: 28.2055 | D47: 70 | E47: 29.341 | F47: 0.06 | G47: 6.54672 | H47: 10.2443
A48: 0.2 | B48: -15 | C48: 28.775625 | D48: 70 | E48: 31.01625 | F48: 0.06375 | G48: 7.4673525 | H48: 10.3546
A49: 0.2 | B49: -15 | C49: 29.34575 | D49: 70 | E49: 32.6915 | F49: 0.0675 | G49: 8.387985 | H49: 10.4649
A50: 0.2 | B50: -15 | C50: 29.915875 | D50: 70 | E50: 34.36675 | F50: 0.07125 | G50: 9.3086175 | H50: 10.5752
A51: =(A29+A125)/2 -> 0.2 | B51: -15 | C51: 30.486 | D51: 70 | E51: 36.042 | F51: 0.075 | G51: 10.22925 | H51: 10.6855
A52: 0.2 | B52: -15 | C52: 30.8735 | D52: 70 | E52: 37.257375 | F52: 0.07875 | G52: 11.3544675 | H52: 10.7599375
A53: 0.2 | B53: -15 | C53: 31.261 | D53: 70 | E53: 38.47275 | F53: 0.0825 | G53: 12.479685 | H53: 10.834375
A54: 0.2 | B54: -15 | C54: 31.6485 | D54: 70 | E54: 39.688125 | F54: 0.08625 | G54: 13.6049025 | H54: 10.9088125
A55: =(A30+A129)/2 -> 0.2 | B55: -15 | C55: 32.036 | D55: 70 | E55: 40.9035 | F55: 0.09 | G55: 14.73012 | H55: 10.98325
A56: 0.2 | B56: -15 | C56: 32.315625 | D56: 70 | E56: 41.820875 | F56: 0.09375 | G56: 16.0599225 | H56: 11.0365625
A57: 0.2 | B57: -15 | C57: 32.59525 | D57: 70 | E57: 42.73825 | F57: 0.0975 | G57: 17.389725 | H57: 11.089875
A58: 0.2 | B58: -15 | C58: 32.874875 | D58: 70 | E58: 43.655625 | F58: 0.10125 | G58: 18.7195275 | H58: 11.1431875
A59: =(A31+A133)/2 -> 0.2 | B59: -15 | C59: 33.1545 | D59: 70 | E59: 44.573 | F59: 0.105 | G59: 20.04933 | H59: 11.1965
A60: 0.2 | B60: -15 | C60: 33.365375 | D60: 70 | E60: 45.2876875 | F60: 0.10875 | G60: 21.5837175 | H60: 11.23675
A61: 0.2 | B61: -15 | C61: 33.57625 | D61: 70 | E61: 46.002375 | F61: 0.1125 | G61: 23.118105 | H61: 11.277
A62: 0.2 | B62: -15 | C62: 33.787125 | D62: 70 | E62: 46.7170625 | F62: 0.11625 | G62: 24.6524925 | H62: 11.31725
A63: =(A32+A137)/2 -> 0.2 | B63: -15 | C63: 33.998 | D63: 70 | E63: 47.43175 | F63: 0.12 | G63: 26.18688 | H63: 11.3575
A64: 0.2 | B64: -15 | C64: 34.1624375 | D64: 70 | E64: 48.00375 | F64: 0.12375 | G64: 27.9258525 | H64: 11.38875
A65: 0.2 | B65: -15 | C65: 34.326875 | D65: 70 | E65: 48.57575 | F65: 0.1275 | G65: 29.664825 | H65: 11.42
A66: 0.2 | B66: -15 | C66: 34.4913125 | D66: 70 | E66: 49.14775 | F66: 0.13125 | G66: 31.4037975 | H66: 11.45125
A67: =(A33+A141)/2 -> 0.2 | B67: -15 | C67: 34.65575 | D67: 70 | E67: 49.71975 | F67: 0.135 | G67: 33.14277 | H67: 11.4825
A68: 0.2 | B68: -15 | C68: 34.78775 | D68: 70 | E68: 50.1871875 | F68: 0.13875 | G68: 35.0863275 | H68: 11.488
A69: 0.2 | B69: -15 | C69: 34.91975 | D69: 70 | E69: 50.654625 | F69: 0.1425 | G69: 37.029885 | H69: 11.4935
A70: 0.2 | B70: -15 | C70: 35.05175 | D70: 70 | E70: 51.1220625 | F70: 0.14625 | G70: 38.9734425 | H70: 11.499
A71: =(A34+A145)/2 -> 0.2 | B71: -15 | C71: 35.18375 | D71: 70 | E71: 51.5895 | F71: 0.15 | G71: 40.917 | H71: 11.5045
A72: =(A35+A109)/2 -> 0.2 | B72: -12.5 | C72: 7.13395 | D72: 70 | E72: -8.8311125 | F72: 0.0150841875 | G72: 0.4137977327 | H72: 5.000075
A73: 0.2 | B73: -12.5 | C73: 10.29117812 | D73: 70 | E73: -4.76399375 | F73: 0.01881314063 | G73: 0.7195182996 | H73: 5.729384375
A74: 0.2 | B74: -12.5 | C74: 13.44840625 | D74: 70 | E74: -0.696875 | F74: 0.02254209375 | G74: 1.025238866 | H74: 6.45869375
A75: 0.2 | B75: -12.5 | C75: 16.60563437 | D75: 70 | E75: 3.37024375 | F75: 0.02627104687 | G75: 1.330959433 | H75: 7.188003125
A76: =(A39+A113)/2 -> 0.2 | B76: -12.5 | C76: 19.7628625 | D76: 70 | E76: 7.4373625 | F76: 0.03 | G76: 1.63668 | H76: 7.9173125
A77: 0.2 | B77: -12.5 | C77: 21.34558437 | D77: 70 | E77: 10.88195938 | F77: 0.03375 | G77: 2.1481425 | H77: 8.246709375
A78: 0.2 | B78: -12.5 | C78: 22.92830625 | D78: 70 | E78: 14.32655625 | F78: 0.0375 | G78: 2.659605 | H78: 8.57610625
A79: 0.2 | B79: -12.5 | C79: 24.51102812 | D79: 70 | E79: 17.77115312 | F79: 0.04125 | G79: 3.1710675 | H79: 8.905503125
A80: =(A43+A117)/2 -> 0.2 | B80: -12.5 | C80: 26.09375 | D80: 70 | E80: 21.21575 | F80: 0.045 | G80: 3.68253 | H80: 9.2349
A81: 0.2 | B81: -12.5 | C81: 26.975875 | D81: 70 | E81: 23.5555625 | F81: 0.04875 | G81: 4.3985775 | H81: 9.4096375
A82: 0.2 | B82: -12.5 | C82: 27.858 | D82: 70 | E82: 25.895375 | F82: 0.0525 | G82: 5.114625 | H82: 9.584375
A83: 0.2 | B83: -12.5 | C83: 28.740125 | D83: 70 | E83: 28.2351875 | F83: 0.05625 | G83: 5.8306725 | H83: 9.7591125
A84: =(A47+A121)/2 -> 0.2 | B84: -12.5 | C84: 29.62225 | D84: 70 | E84: 30.575 | F84: 0.06 | G84: 6.54672 | H84: 9.93385
A85: 0.2 | B85: -12.5 | C85: 30.1740625 | D85: 70 | E85: 32.19975 | F85: 0.06375 | G85: 7.4673525 | H85: 10.0407
A86: 0.2 | B86: -12.5 | C86: 30.725875 | D86: 70 | E86: 33.8245 | F86: 0.0675 | G86: 8.387985 | H86: 10.14755
A87: 0.2 | B87: -12.5 | C87: 31.2776875 | D87: 70 | E87: 35.44925 | F87: 0.07125 | G87: 9.3086175 | H87: 10.2544
A88: =(A51+A125)/2 -> 0.2 | B88: -12.5 | C88: 31.8295 | D88: 70 | E88: 37.074 | F88: 0.075 | G88: 10.22925 | H88: 10.36125
A89: 0.2 | B89: -12.5 | C89: 32.204375 | D89: 70 | E89: 38.2525625 | F89: 0.07875 | G89: 11.3544675 | H89: 10.43334375
A90: 0.2 | B90: -12.5 | C90: 32.57925 | D90: 70 | E90: 39.431125 | F90: 0.0825 | G90: 12.479685 | H90: 10.5054375
A91: 0.2 | B91: -12.5 | C91: 32.954125 | D91: 70 | E91: 40.6096875 | F91: 0.08625 | G91: 13.6049025 | H91: 10.57753125
A92: =(A55+A129)/2 -> 0.2 | B92: -12.5 | C92: 33.329 | D92: 70 | E92: 41.78825 | F92: 0.09 | G92: 14.73012 | H92: 10.649625
A93: 0.2 | B93: -12.5 | C93: 33.5994375 | D93: 70 | E93: 42.6778125 | F93: 0.09375 | G93: 16.0599225 | H93: 10.70128125
A94: 0.2 | B94: -12.5 | C94: 33.869875 | D94: 70 | E94: 43.567375 | F94: 0.0975 | G94: 17.389725 | H94: 10.7529375
A95: 0.2 | B95: -12.5 | C95: 34.1403125 | D95: 70 | E95: 44.4569375 | F95: 0.10125 | G95: 18.7195275 | H95: 10.80459375
A96: =(A59+A133)/2 -> 0.2 | B96: -12.5 | C96: 34.41075 | D96: 70 | E96: 45.3465 | F96: 0.105 | G96: 20.04933 | H96: 10.85625
A97: 0.2 | B97: -12.5 | C97: 34.6146875 | D97: 70 | E97: 46.03946875 | F97: 0.10875 | G97: 21.5837175 | H97: 10.89525
A98: 0.2 | B98: -12.5 | C98: 34.818625 | D98: 70 | E98: 46.7324375 | F98: 0.1125 | G98: 23.118105 | H98: 10.93425
A99: 0.2 | B99: -12.5 | C99: 35.0225625 | D99: 70 | E99: 47.42540625 | F99: 0.11625 | G99: 24.6524925 | H99: 10.97325
A100: =(A63+A137)/2 -> 0.2 | B100: -12.5 | C100: 35.2265 | D100: 70 | E100: 48.118375 | F100: 0.12 | G100: 26.18688 | H100: 11.01225
A101: 0.2 | B101: -12.5 | C101: 35.38546875 | D101: 70 | E101: 48.673 | F101: 0.12375 | G101: 27.9258525 | H101: 11.0425
A102: 0.2 | B102: -12.5 | C102: 35.5444375 | D102: 70 | E102: 49.227625 | F102: 0.1275 | G102: 29.664825 | H102: 11.07275
A103: 0.2 | B103: -12.5 | C103: 35.70340625 | D103: 70 | E103: 49.78225 | F103: 0.13125 | G103: 31.4037975 | H103: 11.103
A104: =(A67+A141)/2 -> 0.2 | B104: -12.5 | C104: 35.862375 | D104: 70 | E104: 50.336875 | F104: 0.135 | G104: 33.14277 | H104: 11.13325
A105: 0.2 | B105: -12.5 | C105: 35.99 | D105: 70 | E105: 50.79009375 | F105: 0.13875 | G105: 35.0863275 | H105: 11.138625
A106: 0.2 | B106: -12.5 | C106: 36.117625 | D106: 70 | E106: 51.2433125 | F106: 0.1425 | G106: 37.029885 | H106: 11.144
A107: 0.2 | B107: -12.5 | C107: 36.24525 | D107: 70 | E107: 51.69653125 | F107: 0.14625 | G107: 38.9734425 | H107: 11.149375
A108: =(A71+A145)/2 -> 0.2 | B108: -12.5 | C108: 36.372875 | D108: 70 | E108: 52.14975 | F108: 0.15 | G108: 40.917 | H108: 11.15475
A109: 0.2 | B109: -10 | C109: 9.1534 | D109: 70 | E109: -6.4637 | F109: 0.0150427 | G109: 0.4115028569 | H109: 4.8189
A110: 0.2 | B110: -10 | C110: 12.23755 | D110: 70 | E110: -2.503725 | F110: 0.018782025 | G110: 0.7177971427 | H110: 5.530925
A111: 0.2 | B111: -10 | C111: 15.3217 | D111: 70 | E111: 1.45625 | F111: 0.02252135 | G111: 1.024091428 | H111: 6.24295
A112: 0.2 | B112: -10 | C112: 18.40585 | D112: 70 | E112: 5.416225 | F112: 0.026260675 | G112: 1.330385714 | H112: 6.954975
A113: 0.2 | B113: -10 | C113: 21.49 | D113: 70 | E113: 9.3762 | F113: 0.03 | G113: 1.63668 | H113: 7.667
A114: 0.2 | B114: -10 | C114: 23.02375 | D114: 70 | E114: 12.71665 | F114: 0.03375 | G114: 2.1481425 | H114: 7.98665
A115: 0.2 | B115: -10 | C115: 24.5575 | D115: 70 | E115: 16.0571 | F115: 0.0375 | G115: 2.659605 | H115: 8.3063
A116: 0.2 | B116: -10 | C116: 26.09125 | D116: 70 | E116: 19.39755 | F116: 0.04125 | G116: 3.1710675 | H116: 8.62595
A117: 0.2 | B117: -10 | C117: 27.625 | D117: 70 | E117: 22.738 | F117: 0.045 | G117: 3.68253 | H117: 8.9456
A118: 0.2 | B118: -10 | C118: 28.4785 | D118: 70 | E118: 25.00575 | F118: 0.04875 | G118: 4.3985775 | H118: 9.11505
A119: 0.2 | B119: -10 | C119: 29.332 | D119: 70 | E119: 27.2735 | F119: 0.0525 | G119: 5.114625 | H119: 9.2845
A120: 0.2 | B120: -10 | C120: 30.1855 | D120: 70 | E120: 29.54125 | F120: 0.05625 | G120: 5.8306725 | H120: 9.45395
A121: 0.2 | B121: -10 | C121: 31.039 | D121: 70 | E121: 31.809 | F121: 0.06 | G121: 6.54672 | H121: 9.6234
A122: 0.2 | B122: -10 | C122: 31.5725 | D122: 70 | E122: 33.38325 | F122: 0.06375 | G122: 7.4673525 | H122: 9.7268
A123: 0.2 | B123: -10 | C123: 32.106 | D123: 70 | E123: 34.9575 | F123: 0.0675 | G123: 8.387985 | H123: 9.8302
A124: 0.2 | B124: -10 | C124: 32.6395 | D124: 70 | E124: 36.53175 | F124: 0.07125 | G124: 9.3086175 | H124: 9.9336
A125: 0.2 | B125: -10 | C125: 33.173 | D125: 70 | E125: 38.106 | F125: 0.075 | G125: 10.22925 | H125: 10.037
A126: 0.2 | B126: -10 | C126: 33.53525 | D126: 70 | E126: 39.24775 | F126: 0.07875 | G126: 11.3544675 | H126: 10.10675
A127: 0.2 | B127: -10 | C127: 33.8975 | D127: 70 | E127: 40.3895 | F127: 0.0825 | G127: 12.479685 | H127: 10.1765
A128: 0.2 | B128: -10 | C128: 34.25975 | D128: 70 | E128: 41.53125 | F128: 0.08625 | G128: 13.6049025 | H128: 10.24625
A129: 0.2 | B129: -10 | C129: 34.622 | D129: 70 | E129: 42.673 | F129: 0.09 | G129: 14.73012 | H129: 10.316
A130: 0.2 | B130: -10 | C130: 34.88325 | D130: 70 | E130: 43.53475 | F130: 0.09375 | G130: 16.0599225 | H130: 10.366
A131: 0.2 | B131: -10 | C131: 35.1445 | D131: 70 | E131: 44.3965 | F131: 0.0975 | G131: 17.389725 | H131: 10.416
A132: 0.2 | B132: -10 | C132: 35.40575 | D132: 70 | E132: 45.25825 | F132: 0.10125 | G132: 18.7195275 | H132: 10.466
A133: 0.2 | B133: -10 | C133: 35.667 | D133: 70 | E133: 46.12 | F133: 0.105 | G133: 20.04933 | H133: 10.516
A134: 0.2 | B134: -10 | C134: 35.864 | D134: 70 | E134: 46.79125 | F134: 0.10875 | G134: 21.5837175 | H134: 10.55375
A135: 0.2 | B135: -10 | C135: 36.061 | D135: 70 | E135: 47.4625 | F135: 0.1125 | G135: 23.118105 | H135: 10.5915
A136: 0.2 | B136: -10 | C136: 36.258 | D136: 70 | E136: 48.13375 | F136: 0.11625 | G136: 24.6524925 | H136: 10.62925
A137: 0.2 | B137: -10 | C137: 36.455 | D137: 70 | E137: 48.805 | F137: 0.12 | G137: 26.18688 | H137: 10.667
A138: 0.2 | B138: -10 | C138: 36.6085 | D138: 70 | E138: 49.34225 | F138: 0.12375 | G138: 27.9258525 | H138: 10.69625
A139: 0.2 | B139: -10 | C139: 36.762 | D139: 70 | E139: 49.8795 | F139: 0.1275 | G139: 29.664825 | H139: 10.7255
A140: 0.2 | B140: -10 | C140: 36.9155 | D140: 70 | E140: 50.41675 | F140: 0.13125 | G140: 31.4037975 | H140: 10.75475
A141: 0.2 | B141: -10 | C141: 37.069 | D141: 70 | E141: 50.954 | F141: 0.135 | G141: 33.14277 | H141: 10.784
A142: 0.2 | B142: -10 | C142: 37.19225 | D142: 70 | E142: 51.393 | F142: 0.13875 | G142: 35.0863275 | H142: 10.78925
A143: 0.2 | B143: -10 | C143: 37.3155 | D143: 70 | E143: 51.832 | F143: 0.1425 | G143: 37.029885 | H143: 10.7945
A144: 0.2 | B144: -10 | C144: 37.43875 | D144: 70 | E144: 52.271 | F144: 0.14625 | G144: 38.9734425 | H144: 10.79975
A145: 0.2 | B145: -10 | C145: 37.562 | D145: 70 | E145: 52.71 | F145: 0.15 | G145: 40.917 | H145: 10.805
A146: 0.2 | B146: -7.5 | C146: 11.162475 | D146: 70 | E146: -4.0594875 | F146: 0.015050975 | G146: 0.4119565891 | H146: 4.7002625
A147: 0.2 | B147: -7.5 | C147: 14.1530125 | D147: 70 | E147: -0.220540625 | F147: 0.01878823125 | G147: 0.7181374419 | H147: 5.3826375
A148: 0.2 | B148: -7.5 | C148: 17.14355 | D148: 70 | E148: 3.61840625 | F148: 0.0225254875 | G148: 1.024318295 | H148: 6.0650125
A149: 0.2 | B149: -7.5 | C149: 20.1340875 | D149: 70 | E149: 7.457353125 | F149: 0.02626274375 | G149: 1.330499147 | H149: 6.7473875
A150: 0.2 | B150: -7.5 | C150: 23.124625 | D150: 70 | E150: 11.2963 | F150: 0.03 | G150: 1.63668 | H150: 7.4297625
A151: 0.2 | B151: -7.5 | C151: 24.6095625 | D151: 70 | E151: 14.53250625 | F151: 0.03375 | G151: 2.1481425 | H151: 7.737909375
A152: 0.2 | B152: -7.5 | C152: 26.0945 | D152: 70 | E152: 17.7687125 | F152: 0.0375 | G152: 2.659605 | H152: 8.04605625
A153: 0.2 | B153: -7.5 | C153: 27.5794375 | D153: 70 | E153: 21.00491875 | F153: 0.04125 | G153: 3.1710675 | H153: 8.354203125
A154: 0.2 | B154: -7.5 | C154: 29.064375 | D154: 70 | E154: 24.241125 | F154: 0.045 | G154: 3.68253 | H154: 8.66235
A155: 0.2 | B155: -7.5 | C155: 29.89 | D155: 70 | E155: 26.4371875 | F155: 0.04875 | G155: 4.3985775 | H155: 8.826059375
A156: 0.2 | B156: -7.5 | C156: 30.715625 | D156: 70 | E156: 28.63325 | F156: 0.0525 | G156: 5.114625 | H156: 8.98976875
A157: 0.2 | B157: -7.5 | C157: 31.54125 | D157: 70 | E157: 30.8293125 | F157: 0.05625 | G157: 5.8306725 | H157: 9.153478125
A158: 0.2 | B158: -7.5 | C158: 32.366875 | D158: 70 | E158: 33.025375 | F158: 0.06 | G158: 6.54672 | H158: 9.3171875
A159: 0.2 | B159: -7.5 | C159: 32.8826875 | D159: 70 | E159: 34.54965625 | F159: 0.06375 | G159: 7.4673525 | H159: 9.417221875
A160: 0.2 | B160: -7.5 | C160: 33.3985 | D160: 70 | E160: 36.0739375 | F160: 0.0675 | G160: 8.387985 | H160: 9.51725625
A161: 0.2 | B161: -7.5 | C161: 33.9143125 | D161: 70 | E161: 37.59821875 | F161: 0.07125 | G161: 9.3086175 | H161: 9.617290625
A162: 0.2 | B162: -7.5 | C162: 34.430125 | D162: 70 | E162: 39.1225 | F162: 0.075 | G162: 10.22925 | H162: 9.717325
A163: 0.2 | B163: -7.5 | C163: 34.7803125 | D163: 70 | E163: 40.22796875 | F163: 0.07875 | G163: 11.3544675 | H163: 9.784815625
A164: 0.2 | B164: -7.5 | C164: 35.1305 | D164: 70 | E164: 41.3334375 | F164: 0.0825 | G164: 12.479685 | H164: 9.85230625
A165: 0.2 | B165: -7.5 | C165: 35.4806875 | D165: 70 | E165: 42.43890625 | F165: 0.08625 | G165: 13.6049025 | H165: 9.919796875
A166: 0.2 | B166: -7.5 | C166: 35.830875 | D166: 70 | E166: 43.544375 | F166: 0.09 | G166: 14.73012 | H166: 9.9872875
A167: 0.2 | B167: -7.5 | C167: 36.083375 | D167: 70 | E167: 44.37865625 | F167: 0.09375 | G167: 16.0599225 | H167: 10.03568438
A168: 0.2 | B168: -7.5 | C168: 36.335875 | D168: 70 | E168: 45.2129375 | F168: 0.0975 | G168: 17.389725 | H168: 10.08408125
A169: 0.2 | B169: -7.5 | C169: 36.588375 | D169: 70 | E169: 46.04721875 | F169: 0.10125 | G169: 18.7195275 | H169: 10.13247813
A170: 0.2 | B170: -7.5 | C170: 36.840875 | D170: 70 | E170: 46.8815 | F170: 0.105 | G170: 20.04933 | H170: 10.180875
A171: 0.2 | B171: -7.5 | C171: 37.03125 | D171: 70 | E171: 47.531375 | F171: 0.10875 | G171: 21.5837175 | H171: 10.2174
A172: 0.2 | B172: -7.5 | C172: 37.221625 | D172: 70 | E172: 48.18125 | F172: 0.1125 | G172: 23.118105 | H172: 10.253925
A173: 0.2 | B173: -7.5 | C173: 37.412 | D173: 70 | E173: 48.831125 | F173: 0.11625 | G173: 24.6524925 | H173: 10.29045
A174: 0.2 | B174: -7.5 | C174: 37.602375 | D174: 70 | E174: 49.481 | F174: 0.12 | G174: 26.18688 | H174: 10.326975
A175: 0.2 | B175: -7.5 | C175: 37.75071875 | D175: 70 | E175: 50.001125 | F175: 0.12375 | G175: 27.9258525 | H175: 10.3552875
A176: 0.2 | B176: -7.5 | C176: 37.8990625 | D176: 70 | E176: 50.52125 | F176: 0.1275 | G176: 29.664825 | H176: 10.3836
A177: 0.2 | B177: -7.5 | C177: 38.04740625 | D177: 70 | E177: 51.041375 | F177: 0.13125 | G177: 31.4037975 | H177: 10.4119125
A178: 0.2 | B178: -7.5 | C178: 38.19575 | D178: 70 | E178: 51.5615 | F178: 0.135 | G178: 33.14277 | H178: 10.440225
A179: 0.2 | B179: -7.5 | C179: 38.31484375 | D179: 70 | E179: 51.9865 | F179: 0.13875 | G179: 35.0863275 | H179: 10.44529375
A180: 0.2 | B180: -7.5 | C180: 38.4339375 | D180: 70 | E180: 52.4115 | F180: 0.1425 | G180: 37.029885 | H180: 10.4503625
A181: 0.2 | B181: -7.5 | C181: 38.55303125 | D181: 70 | E181: 52.8365 | F181: 0.14625 | G181: 38.9734425 | H181: 10.45543125
A182: 0.2 | B182: -7.5 | C182: 38.672125 | D182: 70 | E182: 53.2615 | F182: 0.15 | G182: 40.917 | H182: 10.4605
A183: 0.2 | B183: -5 | C183: 13.17155 | D183: 70 | E183: -1.655275 | F183: 0.01505925 | G183: 0.4124103214 | H183: 4.581625
A184: 0.2 | B184: -5 | C184: 16.068475 | D184: 70 | E184: 2.06264375 | F184: 0.0187944375 | G184: 0.718477741 | H184: 5.23435
A185: 0.2 | B185: -5 | C185: 18.9654 | D185: 70 | E185: 5.7805625 | F185: 0.022529625 | G185: 1.024545161 | H185: 5.887075
A186: 0.2 | B186: -5 | C186: 21.862325 | D186: 70 | E186: 9.49848125 | F186: 0.0262648125 | G186: 1.33061258 | H186: 6.5398
A187: 0.2 | B187: -5 | C187: 24.75925 | D187: 70 | E187: 13.2164 | F187: 0.03 | G187: 1.63668 | H187: 7.192525
A188: 0.2 | B188: -5 | C188: 26.195375 | D188: 70 | E188: 16.3483625 | F188: 0.03375 | G188: 2.1481425 | H188: 7.48916875
A189: 0.2 | B189: -5 | C189: 27.6315 | D189: 70 | E189: 19.480325 | F189: 0.0375 | G189: 2.659605 | H189: 7.7858125
A190: 0.2 | B190: -5 | C190: 29.067625 | D190: 70 | E190: 22.6122875 | F190: 0.04125 | G190: 3.1710675 | H190: 8.08245625
A191: 0.2 | B191: -5 | C191: 30.50375 | D191: 70 | E191: 25.74425 | F191: 0.045 | G191: 3.68253 | H191: 8.3791
A192: 0.2 | B192: -5 | C192: 31.3015 | D192: 70 | E192: 27.868625 | F192: 0.04875 | G192: 4.3985775 | H192: 8.53706875
A193: 0.2 | B193: -5 | C193: 32.09925 | D193: 70 | E193: 29.993 | F193: 0.0525 | G193: 5.114625 | H193: 8.6950375
A194: 0.2 | B194: -5 | C194: 32.897 | D194: 70 | E194: 32.117375 | F194: 0.05625 | G194: 5.8306725 | H194: 8.85300625
A195: 0.2 | B195: -5 | C195: 33.69475 | D195: 70 | E195: 34.24175 | F195: 0.06 | G195: 6.54672 | H195: 9.010975
A196: 0.2 | B196: -5 | C196: 34.192875 | D196: 70 | E196: 35.7160625 | F196: 0.06375 | G196: 7.4673525 | H196: 9.10764375
A197: 0.2 | B197: -5 | C197: 34.691 | D197: 70 | E197: 37.190375 | F197: 0.0675 | G197: 8.387985 | H197: 9.2043125
A198: 0.2 | B198: -5 | C198: 35.189125 | D198: 70 | E198: 38.6646875 | F198: 0.07125 | G198: 9.3086175 | H198: 9.30098125
A199: 0.2 | B199: -5 | C199: 35.68725 | D199: 70 | E199: 40.139 | F199: 0.075 | G199: 10.22925 | H199: 9.39765
A200: 0.2 | B200: -5 | C200: 36.025375 | D200: 70 | E200: 41.2081875 | F200: 0.07875 | G200: 11.3544675 | H200: 9.46288125
A201: 0.2 | B201: -5 | C201: 36.3635 | D201: 70 | E201: 42.277375 | F201: 0.0825 | G201: 12.479685 | H201: 9.5281125
... 4299 more rows
